fUST/lending_fUST_20250717
["ID","MTS","AMOUNT","RATE_DAILY","PERIOD"]
[372771259,1752756642445,-1173.51,0.00017589,2]
[372771260,1752756642455,-569.19,0.00017589,2]
[372771261,1752756642467,-206.9208883,0.00017589,2]
[372771263,1752756642478,-460.0,0.00017589,2]
[372771264,1752756642489,-743.42,0.00017589,2]
[372771265,1752756642500,-460.0,0.00017591,2]
[372771266,1752756642512,-460.0,0.00017591,2]
[372771267,1752756642523,-460.0,0.00017591,2]
[372771269,1752756642534,-460.0,0.00017591,2]
[372771271,1752756642546,-460.0,0.00017591,2]
[372771273,1752756642557,-460.0,0.00017591,2]
[372771275,1752756642569,-460.0,0.00017591,2]
[372771278,1752756642581,-593.85,0.00017591,2]
[372771280,1752756642592,-492.99,0.00017591,2]
[372771282,1752756642603,-843.5,0.00017591,2]
[372771284,1752756642615,-460.0,0.00017591,2]
[372771286,1752756642627,-491.34,0.00017591,2]
[372771288,1752756642638,-524.46261268,0.00017591,2]
[372771291,1752756642650,-460.0,0.00017591,2]
[372771293,1752756642663,-460.0,0.00017591,2]
[372771295,1752756642674,-460.0,0.00017591,2]
[372771297,1752756642686,-460.0,0.00017591,2]
[372771299,1752756642697,-478.85,0.00017591,2]
[372771301,1752756642709,-460.0,0.00017591,2]
[372771304,1752756642720,-460.0,0.00017591,2]
[372771306,1752756642733,-460.0,0.00017591,2]
[372771308,1752756642745,-675.38,0.00017591,2]
[372771310,1752756642757,-566.82,0.00017591,2]
[372771312,1752756642768,-460.0,0.00017591,2]
[372771313,1752756642779,-460.0,0.00017591,2]
[372771314,1752756642791,-560.2,0.00017591,2]
[372771315,1752756642802,-460.0,0.00017593,2]
[372771316,1752756642813,-460.0,0.00017593,2]
[372771317,1752756642824,-460.0,0.00017593,2]
[372771318,1752756642835,-465.50350925,0.00017593,2]
[372771319,1752756642846,-460.0,0.00017593,2]
[372771320,1752756642857,-460.0,0.00017593,2]
[372771322,1752756642869,-460.0,0.00017593,2]
[372771323,1752756642880,-460.0,0.00017593,2]
[372771324,1752756642890,-460.0,0.00017593,2]
[372771325,1752756642902,-460.0,0.00017593,2]
[372771327,1752756642913,-551.08,0.00017593,2]
[372771329,1752756642924,-460.0,0.00017593,2]
[372771331,1752756642935,-4251.67,0.00017593,2]
[372771333,1752756642946,-460.0,0.00017593,2]
[372771334,1752756642958,-1101.8,0.00017593,2]
[372771335,1752756642969,-1227.46,0.00017593,2]
[372771336,1752756642981,-495.64,0.00017593,2]
[372771337,1752756642992,-1151.6,0.00017593,2]
[372771338,1752756643003,-2280.27,0.00017593,2]
[372771339,1752756643014,-297.45462002,0.00017653,2]
[372771340,1752756643026,-500.0,0.00017653,2]
[372771341,1752756643037,-460.0,0.0001769,2]
[372771342,1752756643048,-460.0,0.0001769,2]
[372771343,1752756643059,-561.94,0.0001769,2]
[372771344,1752756643070,-774.95,0.0001769,2]
[372771345,1752756643081,-460.0,0.0001769,2]
[372771346,1752756643092,-460.0,0.0001769,2]
[372771347,1752756643104,-460.0,0.0001769,2]
[372771348,1752756643117,-460.0,0.0001769,2]
[372771349,1752756643128,-460.0,0.0001769,2]
[372771350,1752756643139,-460.0,0.0001769,2]
[372771351,1752756643150,-655.24,0.0001769,2]
[372771352,1752756643161,-460.0,0.0001769,2]
[372771353,1752756643172,-460.0,0.0001769,2]
[372771354,1752756643183,-460.0,0.0001769,2]
[372771355,1752756643195,-460.0,0.0001769,2]
[372771356,1752756643206,-460.0,0.0001769,2]
[372771357,1752756643217,-460.0,0.0001769,2]
[372771358,1752756643232,-460.0,0.0001769,2]
[372771359,1752756643242,-460.0,0.0001769,2]
[372771360,1752756643252,-460.0,0.0001769,2]
[372771361,1752756643261,-460.0,0.0001769,2]
[372771362,1752756643271,-460.0,0.0001769,2]
[372771363,1752756643281,-460.0,0.0001769,2]
[372771364,1752756643292,-461.57923151,0.0001769,2]
[372771365,1752756643302,-460.0,0.0001769,2]
[372771366,1752756643312,-384.19,0.0001769,2]
[372771367,1752756643321,-460.0,0.0001769,2]
[372771372,1752756643514,-460.0,0.0001769,2]
[372771373,1752756643531,-460.0,0.0001769,2]
[372771375,1752756643543,-463.82029014,0.0001769,2]
[372771377,1752756643553,-741.73,0.0001769,2]
[372771379,1752756643562,-460.0,0.0001769,2]
[372771381,1752756643572,-460.0,0.0001769,2]
[372771383,1752756643581,-460.0,0.0001769,2]
[372771385,1752756643591,-460.0,0.0001769,2]
[372771387,1752756643601,-460.0,0.0001769,2]
[372771389,1752756643611,-460.0,0.0001769,2]
[372771391,1752756643620,-460.0,0.0001769,2]
[372771393,1752756643630,-460.0,0.00017693,2]
[372771395,1752756643639,-460.0,0.00017693,2]
[372771397,1752756643651,-460.0,0.00017693,2]
[372771399,1752756643661,-460.0,0.00017694,2]
[372771400,1752756643670,-460.0,0.00017694,2]
[372771402,1752756643679,-500.49764227,0.00017697,2]
[372771404,1752756643690,-500.0,0.00017723,2]
[372771406,1752756643699,-500.0,0.00017726,2]
[372771408,1752756643708,-460.0,0.00017796,2]
[372771410,1752756643717,-460.0,0.00017796,2]
[372771412,1752756643727,-460.0,0.00017796,2]
[372771414,1752756643737,-605.38198395,0.00017796,2]
[372771416,1752756643746,-460.0,0.00017796,2]
[372771417,1752756643755,-460.0,0.00017796,2]
[372771418,1752756643764,-460.0,0.00017796,2]
[372771419,1752756643774,-460.0,0.00017796,2]
[372771420,1752756643783,-460.0,0.00017796,2]
[372771421,1752756643792,-2525.75,0.00017796,2]
[372771422,1752756643802,-460.0,0.00017796,2]
[372771423,1752756643812,-493.33,0.00017796,2]
[372771424,1752756643821,-1621.5,0.00017796,2]
[372771425,1752756643830,-5013.37,0.00017796,2]
[372771426,1752756643840,-1351.68,0.00017796,2]
[372771428,1752756643850,-460.0,0.00017796,2]
[372771429,1752756643860,-300.0,0.00017834,2]
[372771430,1752756643869,-460.0,0.00017861,2]
[372771431,1752756643879,-736.1,0.00017861,2]
[372771432,1752756643888,-460.0,0.00017861,2]
[372771433,1752756643898,-1634.33,0.00017861,2]
[372771434,1752756643908,-3795.01,0.00017861,2]
[372771435,1752756643917,-460.0,0.00017862,2]
[372771436,1752756643926,-1936.82,0.00017862,2]
[372771437,1752756643936,-460.0,0.00017862,2]
[372771438,1752756643946,-460.0,0.00017862,2]
[372771439,1752756643955,-1475.64,0.00017862,2]
[372771440,1752756643964,-342.17872098,0.00017862,2]
[372771441,1752756643974,-277.08907764,0.00017863,2]
[372771442,1752756643984,-2723.35,0.00017863,2]
[372771443,1752756643994,-601.1,0.00017863,2]
[372771444,1752756644005,-460.0,0.00017863,2]
[372771445,1752756644014,-2196.48,0.00017863,2]
[372771446,1752756644024,-460.0,0.00017863,2]
[372771447,1752756644034,-1173.51,0.00017863,2]
[372771448,1752756644043,-569.19,0.00017863,2]
[372771449,1752756644053,-460.0,0.00017863,2]
[372771450,1752756644063,-743.42,0.00017863,2]
[372771451,1752756644073,-460.0,0.00017865,2]
[372771452,1752756644083,-460.0,0.00017865,2]
[372771453,1752756644092,-460.0,0.00017865,2]
[372771454,1752756644102,-245.38129842,0.00017865,2]
[372771455,1752756644114,-460.0,0.00017865,2]
[372771456,1752756644123,-460.0,0.00017865,2]
[372771457,1752756644132,-593.85,0.00017865,2]
[372771458,1752756644142,-492.99,0.00017865,2]
[372771459,1752756644151,-843.5,0.00017865,2]
[372771460,1752756644161,-370.41350625,0.00017865,2]
[372771461,1752756644170,-491.34,0.00017865,2]
[372771462,1752756644179,-460.0,0.00017865,2]
[372771463,1752756644188,-460.0,0.00017865,2]
[372771464,1752756644197,-460.0,0.00017865,2]
[372771465,1752756644206,-478.85,0.00017865,2]
[372771466,1752756644218,-460.0,0.00017865,2]
[372771467,1752756644227,-460.0,0.00017865,2]
[372771468,1752756644236,-675.38,0.00017865,2]
[372771469,1752756644246,-566.82,0.00017865,2]
[372771470,1752756644255,-560.2,0.00017865,2]
[372771471,1752756644264,-460.0,0.00017867,2]
[372771472,1752756644273,-460.0,0.00017867,2]
[372771473,1752756644283,-460.0,0.00017867,2]
[372771474,1752756644293,-460.0,0.00017867,2]
[372771475,1752756644302,-460.0,0.00017867,2]
[372771476,1752756644311,-460.0,0.00017867,2]
[372771477,1752756644321,-551.08,0.00017867,2]
[372771478,1752756644330,-4251.67,0.00017867,2]
[372771479,1752756644339,-460.0,0.00017867,2]
[372771480,1752756644348,-1101.8,0.00017867,2]
[372771481,1752756644359,-1227.46,0.00017867,2]
[372771482,1752756644369,-495.64,0.00017867,2]
[372771483,1752756644379,-1151.6,0.00017867,2]
[372771484,1752756644388,-2280.27,0.00017867,2]
[372771485,1752756644397,-151.0,0.000179,2]
[372771486,1752756644406,-460.0,0.00017964,2]
[372771487,1752756644415,-561.94,0.00017964,2]
[372771488,1752756644424,-774.95,0.00017964,2]
[372771489,1752756644434,-460.0,0.00017964,2]
[372771490,1752756644443,-460.0,0.00017964,2]
[372771491,1752756644452,-655.24,0.00017964,2]
[372771492,1752756644461,-460.0,0.00017964,2]
[372771493,1752756644470,-460.0,0.00017964,2]
[372771494,1752756644479,-460.0,0.00017964,2]
[372771495,1752756644489,-460.0,0.00017964,2]
[372771496,1752756644498,-460.0,0.00017964,2]
[372771497,1752756644507,-193.17,0.00017964,2]
[372771498,1752756644517,-460.0,0.00017964,2]
[372771499,1752756644526,-460.0,0.00017964,2]
[372771500,1752756644535,-460.0,0.00017964,2]
[372771501,1752756644545,-460.0,0.00017964,2]
[372771502,1752756644554,-460.0,0.00017964,2]
[372771503,1752756644564,-460.0,0.00017964,2]
[372771504,1752756644574,-741.73,0.00017964,2]
[372771505,1752756644584,-460.0,0.00017964,2]
[372771506,1752756644594,-460.0,0.00017964,2]
[372771507,1752756644603,-460.0,0.00017964,2]
[372771508,1752756644615,-460.0,0.00017964,2]
[372771509,1752756644626,-460.0,0.00017964,2]
[372771510,1752756644636,-460.0,0.00017968,2]
[372771511,1752756644646,-910.4111085,0.00017976,2]
[372771512,1752756644660,-627.0,0.00018,2]
[372771513,1752756644670,-460.0,0.0001807,2]
[372771514,1752756644679,-460.0,0.0001807,2]
[372771515,1752756644689,-460.0,0.0001807,2]
[372771516,1752756644701,-460.0,0.0001807,2]
[372771517,1752756644710,-2525.75,0.0001807,2]
[372771518,1752756644720,-493.33,0.0001807,2]
[372771519,1752756644731,-1621.5,0.0001807,2]
[372771520,1752756644742,-5013.37,0.0001807,2]
[372771521,1752756644751,-1351.68,0.0001807,2]
[372771522,1752756644761,-460.0,0.0001807,2]
[372771523,1752756644770,-460.0,0.00018135,2]
[372771524,1752756644780,-736.1,0.00018135,2]
[372771525,1752756644789,-460.0,0.00018135,2]
[372771526,1752756644800,-1634.33,0.00018135,2]
[372771527,1752756644810,-3795.01,0.00018135,2]
[372771528,1752756644819,-460.0,0.00018136,2]
[372771529,1752756644830,-1936.82,0.00018136,2]
[372771530,1752756644840,-460.0,0.00018136,2]
[372771531,1752756644850,-335.49729468,0.00018136,2]
[372771532,1752756644862,-1475.64,0.00018136,2]
[372771533,1752756644871,-2723.35,0.00018137,2]
[372771534,1752756644880,-601.1,0.00018137,2]
[372771535,1752756644890,-460.0,0.00018137,2]
[372771536,1752756644900,-2196.48,0.00018137,2]
[372771537,1752756644909,-460.0,0.00018137,2]
[372771538,1752756644919,-1173.51,0.00018137,2]
[372771539,1752756644929,-569.19,0.00018137,2]
[372771540,1752756644939,-460.0,0.00018137,2]
[372771541,1752756644948,-743.42,0.00018137,2]
[372771542,1752756644957,-460.0,0.00018139,2]
[372771543,1752756644968,-460.0,0.00018139,2]
[372771544,1752756644977,-460.0,0.00018139,2]
[372771545,1752756644988,-460.0,0.00018139,2]
[372771546,1752756644998,-460.0,0.00018139,2]
[372771547,1752756645008,-593.85,0.00018139,2]
[372771548,1752756645017,-492.99,0.00018139,2]
[372771549,1752756645029,-843.5,0.00018139,2]
[372771550,1752756645039,-491.34,0.00018139,2]
[372771551,1752756645049,-460.0,0.00018139,2]
[372771552,1752756645058,-268.13040052,0.00018139,2]
[372771553,1752756645068,-460.0,0.00018139,2]
[372771554,1752756645078,-478.85,0.00018139,2]
[372771555,1752756645088,-460.0,0.00018139,2]
[372771556,1752756645098,-460.0,0.00018139,2]
[372771557,1752756645109,-675.38,0.00018139,2]
[372771558,1752756645119,-566.82,0.00018139,2]
[372771559,1752756645128,-560.2,0.00018139,2]
[372771560,1752756645138,-460.0,0.00018141,2]
[372771561,1752756645150,-160.24113309,0.00018141,2]
[372771562,1752756645160,-460.0,0.00018141,2]
[372771563,1752756645171,-460.0,0.00018141,2]
[372771564,1752756645181,-460.0,0.00018141,2]
[372771565,1752756645191,-460.0,0.00018141,2]
[372771566,1752756645202,-551.08,0.00018141,2]
[372771567,1752756645215,-4251.67,0.00018141,2]
[372771568,1752756645225,-460.0,0.00018141,2]
[372771569,1752756645235,-1101.8,0.00018141,2]
[372771570,1752756645245,-1227.46,0.00018141,2]
[372771571,1752756645254,-495.64,0.00018141,2]
[372771572,1752756645264,-1151.6,0.00018141,2]
[372771573,1752756645273,-2280.27,0.00018141,2]
[372771574,1752756645283,-315.42457621,0.00018198,2]
[372771575,1752756645294,-460.0,0.00018238,2]
[372771576,1752756645304,-561.94,0.00018238,2]
[372771577,1752756645313,-774.95,0.00018238,2]
[372771578,1752756645322,-655.24,0.00018238,2]
[372771579,1752756645332,-460.0,0.00018238,2]
[372771580,1752756645343,-460.0,0.00018238,2]
[372771581,1752756645353,-594.34890755,0.00018238,2]
[372771582,1752756645366,-460.0,0.00018238,2]
[372771583,1752756645375,-460.0,0.00018238,2]
[372771584,1752756645386,-460.0,0.00018238,2]
[372771585,1752756645396,-460.0,0.00018238,2]
[372771586,1752756645406,-460.0,0.00018238,2]
[372771587,1752756645416,-460.0,0.00018238,2]
[372771588,1752756645426,-741.73,0.00018238,2]
[372771589,1752756645435,-460.0,0.00018238,2]
[372771590,1752756645445,-460.0,0.00018238,2]
[372771591,1752756645454,-460.0,0.00018238,2]
[372771592,1752756645465,-1000.0,0.00018274,2]
[372771593,1752756645476,-460.0,0.00018344,2]
[372771594,1752756645487,-2525.75,0.00018344,2]
[372771595,1752756645498,-493.33,0.00018344,2]
[372771596,1752756645508,-1621.5,0.00018344,2]
[372771597,1752756645517,-5013.37,0.00018344,2]
[372771598,1752756645527,-1351.68,0.00018344,2]
[372771599,1752756645536,-500.0,0.00018403,2]
[372771600,1752756645546,-214.30271559,0.00018409,2]
[372771601,1752756645556,-736.1,0.00018409,2]
[372771602,1752756645565,-460.0,0.00018409,2]
[372771603,1752756645574,-1634.33,0.00018409,2]
[372771604,1752756645584,-3795.01,0.00018409,2]
[372771605,1752756645594,-1936.82,0.0001841,2]
[372771606,1752756645604,-460.0,0.0001841,2]
[372771607,1752756645615,-1475.64,0.0001841,2]
[372771608,1752756645625,-2723.35,0.00018411,2]
[372771609,1752756645634,-601.1,0.00018411,2]
[372771610,1752756645644,-460.0,0.00018411,2]
[372771612,1752756645656,-2196.48,0.00018411,2]
[372771613,1752756645666,-460.0,0.00018411,2]
[372771614,1752756645675,-1173.51,0.00018411,2]
[372771615,1752756645685,-569.19,0.00018411,2]
[372771616,1752756645695,-460.0,0.00018411,2]
[372771617,1752756645704,-743.42,0.00018411,2]
[372771618,1752756645714,-460.0,0.00018413,2]
[372771619,1752756645724,-460.0,0.00018413,2]
[372771620,1752756645735,-593.85,0.00018413,2]
[372771621,1752756645746,-492.99,0.00018413,2]
[372771622,1752756645757,-843.5,0.00018413,2]
[372771623,1752756645766,-491.34,0.00018413,2]
[372771624,1752756645776,-460.0,0.00018413,2]
[372771625,1752756645786,-460.0,0.00018413,2]
[372771626,1752756645795,-478.85,0.00018413,2]
[372771627,1752756645804,-460.0,0.00018413,2]
[372771629,1752756645814,-460.0,0.00018413,2]
[372771631,1752756645824,-675.38,0.00018413,2]
[372771632,1752756645833,-566.82,0.00018413,2]
[372771633,1752756645843,-560.2,0.00018413,2]
[372771634,1752756645852,-460.0,0.00018415,2]
[372771635,1752756645863,-460.0,0.00018415,2]
[372771636,1752756645872,-460.0,0.00018415,2]
[372771637,1752756645882,-460.0,0.00018415,2]
[372771638,1752756645891,-460.0,0.00018415,2]
[372771639,1752756645900,-551.08,0.00018415,2]
[372771640,1752756645910,-4251.67,0.00018415,2]
[372771641,1752756645920,-460.0,0.00018415,2]
[372771643,1752756645930,-1101.8,0.00018415,2]
[372771644,1752756645940,-1227.46,0.00018415,2]
[372771645,1752756645950,-495.64,0.00018415,2]
[372771646,1752756645960,-1151.6,0.00018415,2]
[372771647,1752756645969,-2280.27,0.00018415,2]
[372771648,1752756645979,-151.0,0.00018448,2]
[372771649,1752756645989,-1138.0,0.00018448,2]
[372771650,1752756645998,-151.0,0.00018448,2]
[372771651,1752756646008,-215.20393213,0.00018448,2]
[372771653,1752756646018,-151.0,0.00018448,2]
[372771655,1752756646027,-962.0,0.00018448,2]
[372771656,1752756646037,-151.0,0.00018448,2]
[372771657,1752756646046,-151.0,0.00018448,2]
[372771658,1752756646056,-151.0,0.00018448,2]
[372771659,1752756646067,-500.0,0.00018448,2]
[372771660,1752756646076,-239.5938891,0.00018448,2]
[372771661,1752756646088,-81434.24595786,0.00018502,2]
[372771662,1752756646097,-460.0,0.00018512,2]
[372771663,1752756646106,-561.94,0.00018512,2]
[372771664,1752756646118,-774.95,0.00018512,2]
[372771665,1752756646127,-655.24,0.00018512,2]
[372771666,1752756646137,-460.0,0.00018512,2]
[372771667,1752756646146,-460.0,0.00018512,2]
[372771668,1752756646155,-460.0,0.00018512,2]
[372771670,1752756646167,-460.0,0.00018512,2]
[372771671,1752756646178,-460.0,0.00018512,2]
[372771672,1752756646187,-460.0,0.00018512,2]
[372771673,1752756646197,-460.0,0.00018512,2]
[372771674,1752756646207,-460.0,0.00018512,2]
[372771675,1752756646216,-741.73,0.00018512,2]
[372771676,1752756646226,-460.0,0.00018512,2]
[372771677,1752756646235,-414.24,0.00018512,2]
[372771678,1752756646260,-420.0,0.00018607,2]
[372771679,1752756646282,-824.0,0.0001861,2]
[372771680,1752756646292,-474.70639698,0.00018618,2]
[372771681,1752756646301,-2525.75,0.00018618,2]
[372771682,1752756646311,-493.33,0.00018618,2]
[372771683,1752756646322,-1621.5,0.00018618,2]
[372771684,1752756646331,-5013.37,0.00018618,2]
[372771685,1752756646342,-1351.68,0.00018618,2]
[372771686,1752756646352,-736.1,0.00018683,2]
[372771687,1752756646367,-460.0,0.00018683,2]
[372771688,1752756646377,-1634.33,0.00018683,2]
[372771689,1752756646386,-3795.01,0.00018683,2]
[372771690,1752756646396,-1936.82,0.00018684,2]
[372771691,1752756646406,-460.0,0.00018684,2]
[372771692,1752756646415,-1475.64,0.00018684,2]
[372771693,1752756646425,-2723.35,0.00018685,2]
[372771694,1752756646434,-601.1,0.00018685,2]
[372771695,1752756646445,-460.0,0.00018685,2]
[372771696,1752756646455,-2196.48,0.00018685,2]
[372771697,1752756646464,-460.0,0.00018685,2]
[372771698,1752756646474,-1173.51,0.00018685,2]
[372771699,1752756646484,-569.19,0.00018685,2]
[372771700,1752756646493,-460.0,0.00018685,2]
[372771701,1752756646503,-743.42,0.00018685,2]
[372771702,1752756646513,-460.0,0.00018687,2]
[372771703,1752756646523,-593.85,0.00018687,2]
[372771704,1752756646534,-492.99,0.00018687,2]
[372771705,1752756646544,-843.5,0.00018687,2]
[372771706,1752756646554,-491.34,0.00018687,2]
[372771707,1752756646563,-460.0,0.00018687,2]
[372771708,1752756646573,-478.85,0.00018687,2]
[372771709,1752756646582,-460.0,0.00018687,2]
[372771710,1752756646593,-675.38,0.00018687,2]
[372771711,1752756646720,-566.82,0.00018687,2]
[372771712,1752756646736,-560.2,0.00018687,2]
[372771713,1752756646747,-460.0,0.00018689,2]
[372771714,1752756646758,-460.0,0.00018689,2]
[372771715,1752756646768,-460.0,0.00018689,2]
[372771716,1752756646778,-460.0,0.00018689,2]
[372771717,1752756646788,-460.0,0.00018689,2]
[372771718,1752756646798,-551.08,0.00018689,2]
[372771719,1752756646807,-4251.67,0.00018689,2]
[372771720,1752756646817,-407.33878478,0.00018689,2]
[372771721,1752756646827,-1101.8,0.00018689,2]
[372771722,1752756646837,-1227.46,0.00018689,2]
[372771723,1752756646847,-495.64,0.00018689,2]
[372771724,1752756646857,-1151.6,0.00018689,2]
[372771725,1752756646867,-2280.27,0.00018689,2]
[372771726,1752756646876,-151.0,0.000187,2]
[372771727,1752756646888,-151.0,0.000187,2]
[372771728,1752756646902,-1680.0,0.000187,2]
[372771729,1752756646914,-151.0,0.00018722,2]
[372771730,1752756646927,-1138.0,0.00018722,2]
[372771731,1752756646939,-962.0,0.00018722,2]
[372771732,1752756646949,-151.0,0.00018722,2]
[372771733,1752756646959,-151.0,0.00018722,2]
[372771734,1752756646969,-500.0,0.00018722,2]
[372771735,1752756646981,-160.0,0.00018756,2]
[372771736,1752756646991,-1000.0,0.00018769,2]
[372771737,1752756647003,-460.0,0.00018786,2]
[372771738,1752756647013,-561.94,0.00018786,2]
[372771739,1752756647023,-774.95,0.00018786,2]
[372771740,1752756647032,-655.24,0.00018786,2]
[372771741,1752756647041,-460.0,0.00018786,2]
[372771742,1752756647051,-460.0,0.00018786,2]
[372771743,1752756647061,-460.0,0.00018786,2]
[372771744,1752756647071,-460.0,0.00018786,2]
[372771745,1752756647080,-460.0,0.00018786,2]
[372771746,1752756647090,-460.0,0.00018786,2]
[372771747,1752756647099,-460.0,0.00018786,2]
[372771748,1752756647110,-460.0,0.00018786,2]
[372771749,1752756647119,-741.73,0.00018786,2]
[372771750,1752756647129,-1500.0,0.00018822,2]
[372771751,1752756647139,-160.0,0.00018841,2]
[372771752,1752756647148,-160.0,0.00018841,2]
[372771753,1752756647158,-160.0,0.00018841,2]
[372771754,1752756647168,-839.15451687,0.00018842,2]
[372771755,1752756647178,-214.44804168,0.00018842,2]
[372771756,1752756647188,-160.0,0.00018842,2]
[372771757,1752756647197,-230.85589339,0.00018842,2]
[372771758,1752756647207,-215.59244943,0.00018842,2]
[372771759,1752756647218,-12607.95677342,0.00018842,2]
[372771760,1752756647228,-160.0,0.00018842,2]
[372771761,1752756647238,-160.0,0.00018842,2]
[372771762,1752756647248,-160.0,0.00018842,2]
[372771763,1752756647257,-525.67742785,0.00018842,2]
[372771764,1752756647267,-160.0,0.00018842,2]
[372771765,1752756647277,-476.16111942,0.00018842,2]
[372771766,1752756647287,-160.0,0.00018842,2]
[372771767,1752756647297,-3193.09999998,0.00018885,2]
[372771768,1752756647306,-240.74629,0.00018887,2]
[372771769,1752756647316,-240.74629,0.00018887,2]
[372771770,1752756647326,-2525.75,0.00018892,2]
[372771771,1752756647335,-493.33,0.00018892,2]
[372771772,1752756647345,-1621.5,0.00018892,2]
[372771773,1752756647355,-5013.37,0.00018892,2]
[372771774,1752756647366,-1351.68,0.00018892,2]
[372771775,1752756647375,-5595.65340472,0.000189,2]
[372771776,1752756647385,-910.4111085,0.00018909,2]
[372771777,1752756647394,-736.1,0.00018957,2]
[372771778,1752756647403,-460.0,0.00018957,2]
[372771779,1752756647413,-1634.33,0.00018957,2]
[372771780,1752756647422,-3795.01,0.00018957,2]
[372771781,1752756647431,-1936.82,0.00018958,2]
[372771782,1752756647440,-1475.64,0.00018958,2]
[372771783,1752756647449,-2723.35,0.00018959,2]
[372771784,1752756647459,-601.1,0.00018959,2]
[372771785,1752756647469,-176.39,0.00018959,2]
[372771786,1752756647478,-2196.48,0.00018959,2]
[372771787,1752756647488,-460.0,0.00018959,2]
[372771788,1752756647497,-1173.51,0.00018959,2]
[372771789,1752756647506,-569.19,0.00018959,2]
[372771790,1752756647515,-460.0,0.00018959,2]
[372771791,1752756647525,-743.42,0.00018959,2]
[372771792,1752756647534,-460.0,0.00018961,2]
[372771793,1752756647544,-593.85,0.00018961,2]
[372771794,1752756647553,-492.99,0.00018961,2]
[372771795,1752756647562,-843.5,0.00018961,2]
[372771796,1752756647571,-491.34,0.00018961,2]
[372771797,1752756647580,-460.0,0.00018961,2]
[372771798,1752756647590,-478.85,0.00018961,2]
[372771799,1752756647599,-460.0,0.00018961,2]
[372771800,1752756647608,-675.38,0.00018961,2]
[372771801,1752756647618,-566.82,0.00018961,2]
[372771802,1752756647627,-560.2,0.00018961,2]
[372771803,1752756647637,-460.0,0.00018963,2]
[372771804,1752756647646,-221.71658055,0.00018963,2]
[372771805,1752756647659,-460.0,0.00018963,2]
[372771806,1752756647669,-156.25097065,0.00018963,2]
[372771807,1752756647679,-460.0,0.00018963,2]
[372771808,1752756647689,-551.08,0.00018963,2]
[372771809,1752756647699,-4251.67,0.00018963,2]
[372771810,1752756647710,-1101.8,0.00018963,2]
[372771811,1752756647720,-1227.46,0.00018963,2]
[372771812,1752756647729,-495.64,0.00018963,2]
[372771813,1752756647739,-1151.6,0.00018963,2]
[372771814,1752756647749,-2280.27,0.00018963,2]
[372771815,1752756647758,-151.0,0.00018996,2]
[372771816,1752756647768,-1138.0,0.00018996,2]
[372771817,1752756647778,-962.0,0.00018996,2]
[372771818,1752756647787,-198.0,0.00018996,2]
[372771819,1752756647797,-151.0,0.00018996,2]
[372771820,1752756647807,-500.0,0.00018996,2]
[372771821,1752756647816,-151.0,0.00019,2]